[Event "GER-chW Blitz 2019"]
[Site "Magdeburg"]
[Date "2019.05.25"]
[Round "23.1"]
[White "Kushka, Alena"]
[Black "Roesler, Hannah Clara Hed"]
[Result "0-1"]
[ECO "A57"]
[WhiteElo "2148"]
[BlackElo "1619"]
[Annotator "NA"]
[PlyCount "50"]
[EventDate "2019.05.25"]
[EventType "tourn"]
[EventCountry "GER"]
[SourceTitle "playchess.com"]
[Source "ChessBase"]
[SourceQuality "1"]
[TimeControl "180+2"]

1. d4 {[%emt 0:00:00]} Nf6 {[%emt 0:00:00]} 2. c4 {[%emt 0:00:01]} c5 {[%emt 0:00:01]} 3. d5 {[%emt 0:00:01]} b5 {[%emt 0:00:01]} 4. cxb5 {[%emt 0:00:01]} a6 {[%emt 0:00:00]} 5. f3 {[%emt 0:00:02]} g6 {[%emt 0:00:16]} 6. e4 {[%emt 0:00:02]} Bb7 {[%emt 0:00:12]} 7. Nh3 {[%emt 0:00:10]} Bg7 {[%emt 0:00:08]} 8. Nc3 {[%emt 0:00:02]} O-O {[%emt 0:00:07]} 9. bxa6 {[%emt 0:00:03]} Nxa6 {[%emt 0:00:06]} 10. Bc4 {[%emt 0:00:24]} d6 {[%emt 0:00:10]} 11. O-O {[%emt 0:00:03]} Qa5 {[%emt 0:00:22]} 12. Re1 {[%emt 0:00:31]} Nd7 {[%emt 0:00:21]} 13. Qe2 {[%emt 0:00:25]} Nb6 {[%emt 0:00:33]} 14. Bb3 {[%emt 0:00:12]} Nb4 {[%emt 0:00:16]} 15. Bg5 {[%emt 0:00:11]} f6 {[%emt 0:00:14]} 16. Be3 {[%emt 0:00:21]} Ba6 {[%emt 0:00:01]} 17. Qd2 {[%emt 0:00:06]} Nc4 {[%emt 0:00:07]} 18. Bxc4 {[%emt 0:00:05]} Bxc4 {[%emt 0:00:00]} 19. Nf2 {[%emt 0:00:26]} f5 {[%emt 0:00:07]} 20. a3 {[%emt 0:00:04]} Na6 {[%emt 0:00:13]} 21. exf5 {[%emt 0:00:05]} Bxc3 22. bxc3 {[%emt 0:00:02]} Nc7 {[%emt 0:00:19]} 23. fxg6 {[%emt 0:00:05]} hxg6 {[%emt 0:00:01]} 24. Bg5 {[%emt 0:00:04]} Nxd5 {[%emt 0:00:02]} 25. Bxe7 {[%emt 0:00:07]} Rfe8 {[%emt 0:00:05]} 0-1

[Event "GER-chW Blitz 2019"]
[Site "Magdeburg"]
[Date "2019.05.25"]
[Round "23.2"]
[White "Schulze, Lara"]
[Black "Ries, Jutta"]
[Result "0-1"]
[ECO "B03"]
[WhiteElo "2160"]
[BlackElo "2017"]
[Annotator "NA"]
[PlyCount "63"]
[EventDate "2019.05.25"]
[EventType "tourn"]
[EventCountry "GER"]
[SourceTitle "playchess.com"]
[Source "ChessBase"]
[SourceQuality "1"]
[TimeControl "180+2"]

1. e4 {[%emt 0:00:00]} Nf6 {[%emt 0:00:00]} 2. e5 {[%emt 0:00:00]} Nd5 {[%emt 0:00:00]} 3. c4 {[%emt 0:00:00]} Nb6 {[%emt 0:00:01]} 4. d4 {[%emt 0:00:00]} d6 {[%emt 0:00:02]} 5. exd6 {[%emt 0:00:01]} cxd6 {[%emt 0:00:01]} 6. Nc3 {[%emt 0:00:01]} g6 {[%emt 0:00:03]} 7. b3 {[%emt 0:00:01]} Bg7 {[%emt 0:00:01]} 8. Be3 {[%emt 0:00:01]} O-O {[%emt 0:00:03]} 9. Rc1 {[%emt 0:00:01]} Nc6 {[%emt 0:00:06]} 10. Be2 {[%emt 0:00:53]} e5 11. Nf3 Nd7 {[%emt 0:01:42]} 12. O-O {[%emt 0:00:53]} Nf6 {[%emt 0:00:16]} 13. h3 {[%emt 0:00:40]} Nh5 {[%emt 0:00:12]} 14. dxe5 {[%emt 0:00:28]} dxe5 {[%emt 0:00:02]} 15. Qxd8 {[%emt 0:00:09]} Rxd8 {[%emt 0:00:01]} 16. Nd5 {[%emt 0:00:02]} Be6 {[%emt 0:00:05]} 17. Ng5 {[%emt 0:00:03]} Bxd5 {[%emt 0:00:12]} 18. cxd5 {[%emt 0:00:02]} Nd4 {[%emt 0:00:01]} 19. Bxh5 {[%emt 0:00:09]} gxh5 {[%emt 0:00:02]} 20. Bxd4 exd4 {[%emt 0:00:01]} 21. Rc7 {[%emt 0:00:09]} Rxd5 {[%emt 0:00:03]} 22. Rxb7 {[%emt 0:00:02]} Rxg5 {[%emt 0:00:01]} 23. Rd1 {[%emt 0:00:06]} h4 {[%emt 0:00:04]} 24. a4 {[%emt 0:00:02]} Rc5 {[%emt 0:00:03]} 25. b4 {[%emt 0:00:02]} Rc4 {[%emt 0:00:01]} 26. a5 {[%emt 0:00:01]} Bf8 {[%emt 0:00:02]} 27. b5 {[%emt 0:00:01]} Ra4 {[%emt 0:00:01]} 28. a6 {[%emt 0:00:03]} Rb4 {[%emt 0:00:02]} 29. Kf1 {[%emt 0:00:05]} Bc5 {[%emt 0:00:02]} 30. Ke2 {[%emt 0:00:01]} Re8+ {[%emt 0:00:03]} 31. Kd3 {[%emt 0:00:00]} Rc8 {[%emt 0:00:00]} 32. Rc1 0-1

[Event "GER-chW Blitz 2019"]
[Site "Magdeburg"]
[Date "2019.05.25"]
[Round "23.3"]
[White "Braje, Monika"]
[Black "Lubbe, Melanie"]
[Result "1-0"]
[ECO "B21"]
[WhiteElo "1781"]
[BlackElo "2278"]
[Annotator "NA"]
[PlyCount "91"]
[EventDate "2019.05.25"]
[EventType "tourn"]
[EventCountry "GER"]
[SourceTitle "playchess.com"]
[Source "ChessBase"]
[SourceQuality "1"]
[TimeControl "180+2"]

1. e4 {[%emt 0:00:00]} c5 {[%emt 0:00:00]} 2. d4 {[%emt 0:00:01]} cxd4 {[%emt 0:00:01]} 3. c3 {[%emt 0:00:00]} d3 {[%emt 0:00:00]} 4. Bxd3 {[%emt 0:00:01]} d6 {[%emt 0:00:02]} 5. h3 {[%emt 0:00:02]} Nc6 {[%emt 0:00:01]} 6. Nf3 {[%emt 0:00:01]} Nf6 {[%emt 0:00:02]} 7. O-O {[%emt 0:00:03]} g6 {[%emt 0:00:01]} 8. Qe2 {[%emt 0:00:01]} Bg7 {[%emt 0:00:01]} 9. Bf4 {[%emt 0:00:01]} O-O {[%emt 0:00:03]} 10. Rd1 {[%emt 0:00:01]} Qa5 {[%emt 0:00:04]} 11. Nbd2 {[%emt 0:00:07]} Nd7 {[%emt 0:00:11]} 12. Nc4 {[%emt 0:00:06]} Qc7 {[%emt 0:00:02]} 13. Rac1 {[%emt 0:00:02]} a6 {[%emt 0:00:16]} 14. Bb1 {[%emt 0:00:03]} b5 {[%emt 0:00:03]} 15. Ne3 {[%emt 0:00:01]} Nde5 {[%emt 0:00:02]} 16. Nd5 {[%emt 0:00:09]} Qd8 {[%emt 0:00:03]} 17. Nd4 {[%emt 0:00:13]} Bb7 {[%emt 0:00:07]} 18. Nxc6 {[%emt 0:00:28]} Bxc6 {[%emt 0:00:02]} 19. Nb4 {[%emt 0:00:01]} Bb7 {[%emt 0:00:04]} 20. Bh2 {[%emt 0:00:10]} Re8 {[%emt 0:00:14]} 21. f4 {[%emt 0:00:04]} Nc4 {[%emt 0:00:02]} 22. b3 {[%emt 0:00:10]} Qb6+ {[%emt 0:00:27]} 23. Kh1 {[%emt 0:00:02]} Na3 {[%emt 0:00:05]} 24. Bd3 {[%emt 0:00:13]} a5 {[%emt 0:00:01]} 25. Nd5 {[%emt 0:00:05]} Bxd5 {[%emt 0:00:06]} 26. exd5 {[%emt 0:00:01]} b4 {[%emt 0:00:08]} 27. c4 {[%emt 0:00:02]} a4 {[%emt 0:00:12]} 28. f5 {[%emt 0:00:02]} axb3 {[%emt 0:00:22]} 29. axb3 {[%emt 0:00:02]} Rac8 {[%emt 0:00:02]} 30. fxg6 {[%emt 0:00:03]} hxg6 {[%emt 0:00:02]} 31. Bg1 {[%emt 0:00:09]} Qb7 {[%emt 0:00:01]} 32. Be3 {[%emt 0:00:05]} e6 {[%emt 0:00:09]} 33. dxe6 {[%emt 0:00:08]} Rxe6 {[%emt 0:00:01]} 34. Qf2 {[%emt 0:00:07]} Rce8 {[%emt 0:00:02]} 35. Bf4 {[%emt 0:00:07]} Qc6 {[%emt 0:00:12]} 36. Bd2 {[%emt 0:00:13]} Rf6 {[%emt 0:00:17]} 37. Qg3 {[%emt 0:00:06]} Qc5 {[%emt 0:00:03]} 38. Re1 {[%emt 0:00:04]} Rfe6 {[%emt 0:00:03]} 39. Rf1 {[%emt 0:00:02]} Be5 {[%emt 0:00:09]} 40. Qh4 {[%emt 0:00:06]} Bg7 {[%emt 0:00:16]} 41. Qf2 {[%emt 0:00:08]} Bd4 {[%emt 0:00:02]} 42. Qxf7+ {[%emt 0:00:02]} Kh8 {[%emt 0:00:02]} 43. Bxg6 {[%emt 0:00:05]} Bg7 {[%emt 0:00:05]} 44. Rf5 {[%emt 0:00:11]} Re5 {[%emt 0:00:17]} 45. Rh5+ {[%emt 0:00:11]} Rxh5 {[%emt 0:00:01]} 46. Qxe8+ {[%emt 0:00:01]} 1-0

[Event "GER-chW Blitz 2019"]
[Site "Magdeburg"]
[Date "2019.05.25"]
[Round "23.4"]
[White "Mader, Lena"]
[Black "Fuchs, Judith"]
[Result "0-1"]
[ECO "A27"]
[WhiteElo "1839"]
[BlackElo "2218"]
[Annotator "NA"]
[PlyCount "71"]
[EventDate "2019.05.25"]
[EventType "tourn"]
[EventCountry "GER"]
[SourceTitle "playchess.com"]
[Source "ChessBase"]
[SourceQuality "1"]
[TimeControl "180+2"]

1. c4 {[%emt 0:00:00]} e5 {[%emt 0:00:00]} 2. Nc3 {[%emt 0:00:00]} Nc6 {[%emt 0:00:01]} 3. Nf3 {[%emt 0:00:00]} Bc5 {[%emt 0:00:05]} 4. e3 {[%emt 0:00:05]} Nf6 {[%emt 0:00:04]} 5. d4 {[%emt 0:00:07]} exd4 {[%emt 0:00:05]} 6. exd4 {[%emt 0:00:01]} Bb4 {[%emt 0:00:01]} 7. d5 {[%emt 0:00:19]} Ne7 {[%emt 0:00:02]} 8. Bd3 {[%emt 0:00:27]} d6 {[%emt 0:00:03]} 9. O-O {[%emt 0:00:02]} O-O {[%emt 0:00:10]} 10. h3 {[%emt 0:00:26]} Bf5 {[%emt 0:00:16]} 11. Nd4 {[%emt 0:00:18]} Bg6 {[%emt 0:00:08]} 12. Bxg6 {[%emt 0:00:13]} Nxg6 {[%emt 0:00:04]} 13. Qc2 {[%emt 0:00:22]} Qd7 {[%emt 0:00:11]} 14. a3 {[%emt 0:00:08]} Bc5 {[%emt 0:00:06]} 15. Nf3 {[%emt 0:00:07]} a5 {[%emt 0:00:04]} 16. Bg5 {[%emt 0:00:13]} Ne8 {[%emt 0:00:39]} 17. Nb5 {[%emt 0:00:21]} h6 {[%emt 0:00:08]} 18. Bd2 {[%emt 0:00:03]} Nf6 {[%emt 0:00:17]} 19. b4 {[%emt 0:00:03]} Bb6 {[%emt 0:00:03]} 20. Nbd4 {[%emt 0:00:17]} c5 {[%emt 0:00:29]} 21. bxc5 {[%emt 0:00:04]} Bxc5 {[%emt 0:00:03]} 22. Qb2 {[%emt 0:00:04]} Rfe8 {[%emt 0:00:07]} 23. Rfe1 {[%emt 0:00:03]} Ne4 {[%emt 0:00:02]} 24. Be3 Rac8 25. Qb5 Qc7 26. a4 Nc3 27. Qb2 Ne4 28. Nb5 Qd7 29. Nbd4 Nf6 30. Qb5 Qc7 31. Qb2 Re7 32. Qb5 Rce8 33. Reb1 b6 34. Nc6 Rxe3 35. fxe3 Bxe3+ 36. Kh1 0-1

[Event "GER-chW Blitz 2019"]
[Site "Magdeburg"]
[Date "2019.05.25"]
[Round "23.5"]
[White "Zimmer, Elke"]
[Black "Kotyk, Valeriya"]
[Result "0-1"]
[ECO "C01"]
[WhiteElo "1926"]
[BlackElo "1739"]
[Annotator "NA"]
[PlyCount "97"]
[EventDate "2019.05.25"]
[EventType "tourn"]
[EventCountry "GER"]
[SourceTitle "playchess.com"]
[Source "ChessBase"]
[SourceQuality "1"]
[TimeControl "180+2"]

1. e4 {[%emt 0:00:00]} e6 {[%emt 0:00:00]} 2. d4 {[%emt 0:00:00]} d5 {[%emt 0:00:00]} 3. exd5 {[%emt 0:00:00]} exd5 {[%emt 0:00:01]} 4. Nf3 {[%emt 0:00:02]} Nc6 {[%emt 0:00:01]} 5. Bd3 {[%emt 0:00:02]} Bd6 {[%emt 0:00:01]} 6. c3 {[%emt 0:00:00]} Nge7 {[%emt 0:00:02]} 7. O-O {[%emt 0:00:02]} O-O {[%emt 0:00:02]} 8. Bg5 {[%emt 0:00:08]} f6 {[%emt 0:00:02]} 9. Bh4 {[%emt 0:00:01]} Bf5 {[%emt 0:00:02]} 10. Qc2 {[%emt 0:00:09]} Qd7 {[%emt 0:00:04]} 11. Nbd2 {[%emt 0:00:06]} Rfe8 {[%emt 0:00:02]} 12. Bg3 {[%emt 0:00:01]} Bxd3 {[%emt 0:00:07]} 13. Qxd3 {[%emt 0:00:01]} Bxg3 {[%emt 0:00:03]} 14. hxg3 {[%emt 0:00:02]} Qf5 {[%emt 0:00:01]} 15. Qb5 {[%emt 0:00:11]} b6 {[%emt 0:00:08]} 16. Rfe1 {[%emt 0:00:02]} a6 {[%emt 0:00:01]} 17. Qa4 {[%emt 0:00:07]} b5 {[%emt 0:00:04]} 18. Qb3 {[%emt 0:00:07]} Ng6 {[%emt 0:00:38]} 19. Nf1 {[%emt 0:00:12]} Nce7 {[%emt 0:00:10]} 20. Ne3 {[%emt 0:00:02]} Qd7 {[%emt 0:00:01]} 21. a4 {[%emt 0:00:12]} c6 {[%emt 0:00:05]} 22. axb5 {[%emt 0:00:05]} axb5 {[%emt 0:00:00]} 23. Qc2 {[%emt 0:00:09]} Nf8 {[%emt 0:00:16]} 24. Nh4 {[%emt 0:00:05]} Rxa1 {[%emt 0:00:12]} 25. Rxa1 {[%emt 0:00:01]} g6 {[%emt 0:00:04]} 26. Qb1 {[%emt 0:00:38]} Nc8 {[%emt 0:00:06]} 27. Ra8 {[%emt 0:00:01]} Nd6 {[%emt 0:00:03]} 28. Rxe8 {[%emt 0:00:07]} Qxe8 29. Qa2 {[%emt 0:00:07]} Ne6 {[%emt 0:00:15]} 30. Qa7 {[%emt 0:00:03]} Nc4 {[%emt 0:00:15]} 31. Nxc4 {[%emt 0:00:01]} bxc4 {[%emt 0:00:01]} 32. Qb7 {[%emt 0:00:05]} Nd8 {[%emt 0:00:07]} 33. Qa8 {[%emt 0:00:04]} Kf7 {[%emt 0:00:02]} 34. Nf3 {[%emt 0:00:06]} Ne6 {[%emt 0:00:06]} 35. Qb7+ {[%emt 0:00:01]} Kg8 {[%emt 0:00:03]} 36. Kf1 {[%emt 0:00:15]} Nd8 {[%emt 0:00:05]} 37. Qa7 {[%emt 0:00:07]} Qf7 {[%emt 0:00:10]} 38. Qa8 {[%emt 0:00:03]} Qd7 {[%emt 0:00:01]} 39. Ne1 {[%emt 0:00:06]} Kf7 {[%emt 0:00:01]} 40. Nc2 {[%emt 0:00:00]} Ke6 {[%emt 0:00:04]} 41. Nb4 {[%emt 0:00:01]} Kd6 {[%emt 0:00:08]} 42. f3 {[%emt 0:00:09]} h5 {[%emt 0:00:04]} 43. Kf2 {[%emt 0:00:01]} Ke7 {[%emt 0:00:09]} 44. Qb8 {[%emt 0:00:06]} g5 {[%emt 0:00:11]} 45. f4 {[%emt 0:00:09]} Qd6 {[%emt 0:00:19]} 46. Qa7+ {[%emt 0:00:03]} Ke6 {[%emt 0:00:03]} 47. fxg5 {[%emt 0:00:21]} fxg5 {[%emt 0:00:02]} 48. Qg7 {[%emt 0:00:02]} Qe7 {[%emt 0:00:04]} 49. Qe5+ {[%emt 0:00:03] Kf5 [%clk 0:00:07] Qxf5 [%clk 0:00:10]} 0-1

[Event "GER-chW Blitz 2019"]
[Site "Magdeburg"]
[Date "2019.05.25"]
[Round "23.6"]
[White "Kopylov, Luba"]
[Black "Silz, Elisa"]
[Result "0-1"]
[ECO "E81"]
[WhiteElo "2078"]
[BlackElo "1977"]
[Annotator "NA"]
[PlyCount "100"]
[EventDate "2019.05.25"]
[EventType "tourn"]
[EventCountry "GER"]
[SourceTitle "playchess.com"]
[Source "ChessBase"]
[SourceQuality "1"]
[TimeControl "180+2"]

1. d4 {[%emt 0:00:00]} Nf6 {[%emt 0:00:00]} 2. c4 g6 3. Nc3 {[%emt 0:00:02]} Bg7 {[%emt 0:00:00]} 4. e4 d6 5. f3 {[%emt 0:00:02]} O-O {[%emt 0:00:00]} 6. Be3 {[%emt 0:00:01]} a6 {[%emt 0:00:01]} 7. Qd2 {[%emt 0:00:02]} b6 {[%emt 0:00:02]} 8. Nge2 {[%emt 0:00:02]} c5 {[%emt 0:00:02]} 9. g4 {[%emt 0:00:03]} cxd4 {[%emt 0:00:04]} 10. Nxd4 {[%emt 0:00:02]} Nfd7 {[%emt 0:00:08]} 11. h4 {[%emt 0:00:03]} Bb7 {[%emt 0:00:04]} 12. h5 {[%emt 0:00:04]} Ne5 {[%emt 0:00:16]} 13. Bh6 {[%emt 0:00:08]} Nbc6 {[%emt 0:00:24]} 14. Bxg7 {[%emt 0:00:06]} Nxd4 {[%emt 0:00:04]} 15. Qh6 {[%emt 0:00:10]} Ndxf3+ {[%emt 0:00:18]} 16. Kd1 {[%emt 0:00:14]} Nxg4 {[%emt 0:00:25]} 17. Qf4 {[%emt 0:00:02]} Nf2+ {[%emt 0:00:18]} 18. Kc2 {[%emt 0:00:10]} Nd4+ {[%emt 0:00:06]} 19. Bxd4 {[%emt 0:00:02]} e5 {[%emt 0:00:02]} 20. Qh6 {[%emt 0:00:11]} Nxh1 {[%emt 0:00:04]} 21. hxg6 {[%emt 0:00:12]} fxg6 {[%emt 0:00:05]} 22. Bh3 {[%emt 0:00:02]} exd4 {[%emt 0:00:13]} 23. Be6+ {[%emt 0:00:02]} Kh8 {[%emt 0:00:04]} 24. Rxh1 {[%emt 0:00:02]} Qe7 {[%emt 0:00:08]} 25. Nd5 {[%emt 0:00:11]} Bxd5 {[%emt 0:00:02]} 26. exd5 {[%emt 0:00:01]} Qg7 {[%emt 0:00:09]} 27. Qg5 {[%emt 0:00:26]} Qf6 {[%emt 0:00:15]} 28. Qh6 {[%emt 0:00:09]} Ra7 {[%emt 0:00:09]} 29. Rh2 {[%emt 0:00:33]} Qf4 {[%emt 0:00:09]} 30. Qxf4 {[%emt 0:00:07]} Rxf4 {[%emt 0:00:01]} 31. Kd3 {[%emt 0:00:01]} Kg7 {[%emt 0:00:02]} 32. a4 {[%emt 0:00:05]} Kf6 {[%emt 0:00:07]} 33. b4 {[%emt 0:00:02]} h5 {[%emt 0:00:04]} 34. a5 {[%emt 0:00:05]} bxa5 {[%emt 0:00:02]} 35. bxa5 {[%emt 0:00:00]} Rb7 {[%emt 0:00:01]} 36. Bc8 {[%emt 0:00:06]} Rb3+ {[%emt 0:00:01]} 37. Kc2 {[%emt 0:00:02]} Rc3+ {[%emt 0:00:01]} 38. Kd2 {[%emt 0:00:02]} Ra3 {[%emt 0:00:02]} 39. Rh1 {[%emt 0:00:10]} Rff3 {[%emt 0:00:03]} 40. Bxa6 {[%emt 0:00:05]} Ra2+ {[%emt 0:00:01]} 41. Ke1 {[%emt 0:00:03]} Ra1+ {[%emt 0:00:01]} 42. Ke2 {[%emt 0:00:01]} Re3+ {[%emt 0:00:01]} 43. Kd2 {[%emt 0:00:02]} Rxh1 {[%emt 0:00:01]} 44. c5 {[%emt 0:00:03]} dxc5 {[%emt 0:00:02]} 45. Bc4 {[%emt 0:00:01]} Ra1 {[%emt 0:00:02]} 46. a6 {[%emt 0:00:02]} g5 {[%emt 0:00:01]} 47. d6 {[%emt 0:00:01]} g4 {[%emt 0:00:02]} 48. d7 {[%emt 0:00:01]} Ke7 {[%emt 0:00:01]} 49. Bb5 {[%emt 0:00:21]} g3 {[%emt 0:00:02]} 50. d8=Q+ {[%emt 0:00:13]} Kxd8 {[%emt 0:00:01]} 0-1

[Event "GER-chW Blitz 2019"]
[Site "Magdeburg"]
[Date "2019.05.25"]
[Round "23.7"]
[White "Gheng, Simona"]
[Black "Rath, Alina"]
[Result "1/2-1/2"]
[ECO "B20"]
[WhiteElo "1991"]
[BlackElo "2042"]
[Annotator "NA"]
[PlyCount "115"]
[EventDate "2019.05.25"]
[EventType "tourn"]
[EventCountry "GER"]
[SourceTitle "playchess.com"]
[Source "ChessBase"]
[SourceQuality "1"]
[TimeControl "180+2"]

1. e4 {[%emt 0:00:00]} c5 {[%emt 0:00:00]} 2. c4 {[%emt 0:00:00]} Nc6 {[%emt 0:00:00]} 3. Nc3 {[%emt 0:00:01]} g6 {[%emt 0:00:00]} 4. g3 {[%emt 0:00:01]} Bg7 {[%emt 0:00:01]} 5. Bg2 {[%emt 0:00:01]} e6 {[%emt 0:00:01]} 6. Nge2 {[%emt 0:00:02]} Nge7 {[%emt 0:00:01]} 7. O-O {[%emt 0:00:02]} O-O {[%emt 0:00:02]} 8. d3 {[%emt 0:00:01]} Nd4 {[%emt 0:00:02]} 9. Nxd4 {[%emt 0:00:06]} cxd4 {[%emt 0:00:01]} 10. Ne2 {[%emt 0:00:01]} d5 {[%emt 0:00:10]} 11. b3 {[%emt 0:00:50]} dxc4 {[%emt 0:00:04]} 12. bxc4 {[%emt 0:00:01]} e5 {[%emt 0:00:17]} 13. a4 {[%emt 0:00:14]} Bg4 {[%emt 0:00:06]} 14. f3 {[%emt 0:00:02]} Be6 {[%emt 0:00:01]} 15. Ba3 {[%emt 0:00:01]} Re8 {[%emt 0:00:03]} 16. f4 {[%emt 0:00:05]} f6 {[%emt 0:00:16]} 17. Bxe7 {[%emt 0:00:20]} Rxe7 {[%emt 0:00:05]} 18. f5 {[%emt 0:00:02]} Bf7 {[%emt 0:00:04]} 19. g4 {[%emt 0:00:02]} g5 {[%emt 0:00:01]} 20. Ng3 {[%emt 0:00:03]} Bf8 {[%emt 0:00:06]} 21. Rb1 {[%emt 0:00:08]} b6 {[%emt 0:00:02]} 22. Rf2 {[%emt 0:00:07]} Rc8 {[%emt 0:00:01]} 23. Rfb2 {[%emt 0:00:01]} Rec7 {[%emt 0:00:04]} 24. Nh5 {[%emt 0:00:06]} Bxh5 {[%emt 0:00:05]} 25. gxh5 {[%emt 0:00:02]} h6 {[%emt 0:00:01]} 26. Qg4 {[%emt 0:00:01]} Kh7 {[%emt 0:00:07]} 27. Bf3 {[%emt 0:00:08]} Qe8 {[%emt 0:00:02]} 28. Rb5 {[%emt 0:00:08]} Bc5 {[%emt 0:00:05]} 29. Kh1 {[%emt 0:00:03]} a6 {[%emt 0:00:01]} 30. R5b2 {[%emt 0:00:07]} Qxa4 {[%emt 0:00:03]} 31. h4 {[%emt 0:00:03]} Rg8 {[%emt 0:00:04]} 32. Rg2 {[%emt 0:00:01]} Rcg7 {[%emt 0:00:01]} 33. Rbg1 {[%emt 0:00:02]} a5 {[%emt 0:00:04]} 34. hxg5 {[%emt 0:00:02]} Rxg5 {[%emt 0:00:02]} 35. Qh3 {[%emt 0:00:01]} Qe8 {[%emt 0:00:11]} 36. Rxg5 {[%emt 0:00:05]} Rxg5 {[%emt 0:00:01]} 37. Rxg5 {[%emt 0:00:01]} hxg5 {[%emt 0:00:01]} 38. Qg2 {[%emt 0:00:07]} b5 {[%emt 0:00:04]} 39. Qa2 {[%emt 0:00:03]} bxc4 {[%emt 0:00:19]} 40. Qxc4 {[%emt 0:00:04]} Bf8 {[%emt 0:00:04]} 41. Bd1 {[%emt 0:00:02]} Kg7 {[%emt 0:00:08]} 42. Ba4 {[%emt 0:00:02]} Qxh5+ {[%emt 0:00:03]} 43. Kg2 {[%emt 0:00:01]} Qf7 {[%emt 0:00:03]} 44. Qa6 {[%emt 0:00:04]} Bb4 {[%emt 0:00:07]} 45. Bb5 {[%emt 0:00:05]} Qe7 {[%emt 0:00:20]} 46. Qa8 {[%emt 0:00:07]} Bc3 {[%emt 0:00:07]} 47. Kf3 {[%emt 0:00:01]} Qf7 {[%emt 0:00:02]} 48. Bc4 {[%emt 0:00:01]} Qh5+ 49. Kg2 Qg4+ {[%emt 0:00:19]} 50. Kh1 {[%emt 0:00:05]} Qh3+ {[%emt 0:00:09]} 51. Kg1 {[%emt 0:00:01]} Qg3+ 52. Kh1 Qe1+ {[%emt 0:00:17]} 53. Kg2 {[%emt 0:00:03]} Qe2+ 54. Kg1 {[%emt 0:00:00]} Qe3+ {[%emt 0:00:07]} 55. Kg2 {[%emt 0:00:01]} Qe2+ 56. Kg1 Qe1+ {[%emt 0:00:09]} 57. Kg2 {[%emt 0:00:00]} Qg1+ {[%emt 0:00:00]} 58. Kxg1 {[%emt 0:00:01]} 1/2-1/2

[Event "GER-chW Blitz 2019"]
[Site "Magdeburg"]
[Date "2019.05.25"]
[Round "23.8"]
[White "Kunze, Kerstin"]
[Black "Birkholz, Olga"]
[Result "0-1"]
[ECO "B53"]
[WhiteElo "2066"]
[BlackElo "2031"]
[Annotator "NA"]
[PlyCount "79"]
[EventDate "2019.05.25"]
[EventType "tourn"]
[EventCountry "GER"]
[SourceTitle "playchess.com"]
[Source "ChessBase"]
[SourceQuality "1"]
[TimeControl "180+2"]

1. e4 {[%emt 0:00:00]} c5 {[%emt 0:00:00]} 2. Nf3 {[%emt 0:00:02]} d6 {[%emt 0:00:00]} 3. d4 {[%emt 0:00:03]} cxd4 {[%emt 0:00:00]} 4. Qxd4 {[%emt 0:00:02]} Nc6 {[%emt 0:00:02]} 5. Bb5 {[%emt 0:00:01]} e5 {[%emt 0:00:01]} 6. Qd2 {[%emt 0:00:24]} Bd7 {[%emt 0:00:02]} 7. O-O {[%emt 0:00:05]} Nf6 {[%emt 0:00:02]} 8. Re1 {[%emt 0:00:08]} Be7 {[%emt 0:00:05]} 9. c4 {[%emt 0:00:17]} O-O {[%emt 0:00:05]} 10. Nc3 {[%emt 0:00:08]} Re8 {[%emt 0:00:13]} 11. Nd5 {[%emt 0:00:08]} Bf8 {[%emt 0:00:07]} 12. Qc2 {[%emt 0:00:20]} a6 {[%emt 0:00:12]} 13. Bxc6 {[%emt 0:00:07]} bxc6 {[%emt 0:00:01]} 14. Ne3 {[%emt 0:00:07]} Be6 {[%emt 0:00:10]} 15. b3 {[%emt 0:00:04]} Qc7 {[%emt 0:00:05]} 16. Bb2 {[%emt 0:00:01]} a5 {[%emt 0:00:06]} 17. a3 {[%emt 0:00:15]} Rab8 {[%emt 0:00:06]} 18. Bc3 {[%emt 0:00:02]} Qb6 {[%emt 0:00:07]} 19. Rab1 {[%emt 0:00:02]} Ng4 {[%emt 0:00:10]} 20. Ng5 {[%emt 0:00:05]} Bd7 {[%emt 0:00:09]} 21. h3 {[%emt 0:00:12]} Nf6 {[%emt 0:00:03]} 22. b4 {[%emt 0:00:13]} axb4 {[%emt 0:00:02]} 23. axb4 {[%emt 0:00:01]} h6 {[%emt 0:00:01]} 24. Nf3 {[%emt 0:00:01]} Be6 {[%emt 0:00:05]} 25. Nh4 {[%emt 0:00:05]} Nh5 {[%emt 0:00:13]} 26. Kh2 {[%emt 0:00:13]} Nf4 {[%emt 0:00:02]} 27. Ng4 {[%emt 0:00:08]} Bxc4 {[%emt 0:00:19]} 28. Rbd1 {[%emt 0:00:00]} h5 {[%emt 0:00:21]} 29. Ne3 {[%emt 0:00:07]} Be6 {[%emt 0:00:02]} 30. Nhf5 {[%emt 0:00:05]} Rbd8 {[%emt 0:00:17]} 31. g3 {[%emt 0:00:02]} Ng6 {[%emt 0:00:01]} 32. Qe2 {[%emt 0:00:01]} d5 {[%emt 0:00:17]} 33. Qxh5 {[%emt 0:00:06]} d4 {[%emt 0:00:04]} 34. Ng4 {[%emt 0:00:15]} dxc3 {[%emt 0:00:03]} 35. Rxd8 {[%emt 0:00:13]} Rxd8 {[%emt 0:00:02]} 36. Nfe3 {[%emt 0:00:06]} Rd2 {[%emt 0:00:05]} 37. Qg5 {[%emt 0:00:01]} Be7 {[%emt 0:00:07]} 38. Qh5 {[%emt 0:00:02]} c2 {[%emt 0:00:06]} 39. Kg1 {[%emt 0:00:01]} Qd4 {[%emt 0:00:05]} 40. Nh2 0-1